fUSD/lending_fUSD_20250113
["ID","MTS","AMOUNT","RATE_DAILY","PERIOD"]
[348839904,1736801447760,-6973.89206638,9.984e-05,2]
[348839905,1736801447770,-708.30651456,9.984e-05,2]
[348839906,1736801447780,-942.22074103,9.984e-05,2]
[348839907,1736801447789,-500.0,9.984e-05,2]
[348839908,1736801447799,-500.0,9.984e-05,2]
[348839909,1736801447808,-418.1241212,9.984e-05,2]
[348839910,1736801447818,-942.22074103,9.984e-05,2]
[348839911,1736801447828,-200.0,9.984e-05,2]
[348839912,1736801447839,-1392.27891416,9.984e-05,2]
[348839913,1736801447848,-1026.44645191,9.984e-05,2]
[348839914,1736801447858,-524.09661982,9.984e-05,2]
[348839915,1736801447867,-200.0,9.985e-05,2]
[348839916,1736801447877,-1273.69684139,9.985e-05,2]
[348839917,1736801447887,-524.09661982,9.985e-05,2]
[348839918,1736801447896,-67290.36483506,9.985e-05,2]
[348839919,1736801447907,-178.40276522,9.985e-05,2]
[348839920,1736801447916,-27559.93736974,9.985e-05,2]
[348839921,1736801447926,-200.0,9.985e-05,2]
[348839922,1736801447936,-1110.99112742,9.986e-05,2]
[348839923,1736801447945,-200.0,9.986e-05,2]
[348839924,1736801447955,-1367.7213641,9.986e-05,2]
[348839925,1736801447964,-14176.65976301,9.986e-05,2]
[348839926,1736801447976,-693.40676972,9.986e-05,2]
[348839927,1736801447986,-942.22074103,9.986e-05,2]
[348839928,1736801447995,-1273.69684139,9.986e-05,2]
[348839929,1736801448005,-4088.00223319,9.986e-05,2]
[348839930,1736801448015,-218.09834367,9.986e-05,2]
[348839931,1736801448026,-11791.15533592,9.986e-05,2]
[348839932,1736801448038,-509.7712596,9.986e-05,2]
[348839933,1736801448048,-763.29024785,9.987e-05,2]
[348839934,1736801448058,-1392.27891416,9.987e-05,2]
[348839935,1736801448068,-763.29024785,9.987e-05,2]
[348839936,1736801448079,-418.1241212,9.987e-05,2]
[348839937,1736801448089,-178.40276522,9.987e-05,2]
[348839938,1736801448099,-11791.15533592,9.987e-05,2]
[348839939,1736801448111,-500.0,9.987e-05,2]
[348839940,1736801448122,-508.58,9.987e-05,2]
[348839941,1736801448131,-456.13,9.987e-05,2]
[348839942,1736801448141,-18049.58234538,9.987e-05,2]
[348839943,1736801448151,-935.84163456,9.988e-05,2]
[348839944,1736801448161,-942.22074103,9.988e-05,2]
[348839945,1736801448171,-1392.27891416,9.988e-05,2]
[348839946,1736801448181,-317.76000072,9.988e-05,2]
[348839947,1736801448190,-503.02478818,9.988e-05,2]
[348839948,1736801448200,-503.47005793,9.988e-05,2]
[348839949,1736801448210,-501.4012132,9.988e-05,2]
[348839950,1736801448219,-511.62455065,9.988e-05,2]
[348839951,1736801448233,-500.0,9.988e-05,2]
[348839952,1736801448243,-500.0,9.988e-05,2]
[348839953,1736801448253,-500.0,9.988e-05,2]
[348839954,1736801448263,-500.0,9.988e-05,2]
[348839955,1736801448273,-501.03672191,9.988e-05,2]
[348839956,1736801448283,-500.0,9.988e-05,2]
[348839957,1736801448294,-300.0,9.988e-05,2]
[348839958,1736801448305,-500.0,9.988e-05,2]
[348839959,1736801448315,-500.0,9.988e-05,2]
[348839960,1736801448325,-500.0,9.988e-05,2]
[348839961,1736801448335,-500.0,9.988e-05,2]
[348839962,1736801448345,-500.0,9.988e-05,2]
[348839963,1736801448356,-500.81129647,9.988e-05,2]
[348839964,1736801448366,-500.53493488,9.988e-05,2]
[348839965,1736801448375,-500.0,9.988e-05,2]
[348839966,1736801448385,-500.0,9.988e-05,2]
[348839967,1736801448395,-300.0,9.988e-05,2]
[348839968,1736801448405,-501.58616187,9.988e-05,2]
[348839969,1736801448415,-500.0,9.988e-05,2]
[348839970,1736801448425,-502.04273035,9.988e-05,2]
[348839971,1736801448436,-500.0,9.988e-05,2]
[348839972,1736801448446,-500.0,9.988e-05,2]
[348839973,1736801448456,-500.0,9.988e-05,2]
[348839974,1736801448466,-500.0,9.988e-05,2]
[348839975,1736801448478,-500.0,9.988e-05,2]
[348839976,1736801448489,-500.0,9.988e-05,2]
[348839977,1736801448498,-500.39247075,9.988e-05,2]
[348839978,1736801448509,-500.0,9.988e-05,2]
[348839979,1736801448519,-617.47685446,9.988e-05,2]
[348839980,1736801448529,-500.0,9.988e-05,2]
[348839981,1736801448539,-500.33808197,9.988e-05,2]
[348839982,1736801448549,-500.34959369,9.988e-05,2]
[348839983,1736801448558,-500.0,9.988e-05,2]
[348839984,1736801448569,-500.0,9.988e-05,2]
[348839985,1736801448579,-500.0,9.988e-05,2]
[348839986,1736801448589,-500.0,9.988e-05,2]
[348839987,1736801448599,-500.0,9.988e-05,2]
[348839988,1736801448609,-612.98,9.988e-05,2]
[348839989,1736801448619,-500.0,9.988e-05,2]
[348839990,1736801448629,-500.0,9.988e-05,2]
[348839991,1736801448638,-500.0,9.988e-05,2]
[348839992,1736801448649,-500.0,9.988e-05,2]
[348839993,1736801448659,-895.28,9.988e-05,2]
[348839994,1736801448670,-500.0,9.988e-05,2]
[348839995,1736801448680,-880.43,9.988e-05,2]
[348839996,1736801448690,-500.0,9.988e-05,2]
[348839997,1736801448701,-830.26,9.988e-05,2]
[348839998,1736801448711,-500.0,9.988e-05,2]
[348839999,1736801448725,-500.0,9.988e-05,2]
[348840000,1736801448735,-500.0,9.988e-05,2]
[348840001,1736801448745,-500.0,9.988e-05,2]
[348840002,1736801448755,-500.0,9.988e-05,2]
[348840003,1736801448765,-500.0,9.988e-05,2]
[348840004,1736801448775,-500.0,9.988e-05,2]
[348840005,1736801448786,-500.0,9.988e-05,2]
[348840006,1736801448796,-500.0,9.988e-05,2]
[348840007,1736801448807,-200.0,9.988e-05,2]
[348840008,1736801448818,-1058.62973305,9.988e-05,2]
[348840009,1736801448829,-763.29024785,9.988e-05,2]
[348840010,1736801449026,-759.25170892,9.988e-05,2]
[348840011,1736801449037,-200.0,9.988e-05,2]
[348840012,1736801449051,-241.6838138,9.989e-05,2]
[348840013,1736801449062,-178.40276522,9.989e-05,2]
[348840014,1736801449072,-509.7712596,9.989e-05,2]
[348840015,1736801449082,-8604.15032301,9.989e-05,2]
[348840016,1736801449092,-241.6838138,9.989e-05,2]
[348840017,1736801449102,-6973.89206638,9.989e-05,2]
[348840018,1736801449111,-28803.89606409,9.99e-05,2]
[348840019,1736801449121,-20598.07839305,9.99e-05,2]
[348840020,1736801449131,-1342.7715931,9.99e-05,2]
[348840021,1736801449141,-241.6838138,9.99e-05,2]
[348840022,1736801449150,-17516.70548035,9.99e-05,2]
[348840023,1736801449159,-8604.15032301,9.99e-05,2]
[348840024,1736801449169,-178.40276522,9.99e-05,2]
[348840025,1736801449179,-16786.20295067,9.991e-05,2]
[348840026,1736801449189,-1110.99112742,9.991e-05,2]
[348840027,1736801449199,-218.09834367,9.991e-05,2]
[348840028,1736801449208,-200.0,9.991e-05,2]
[348840029,1736801449219,-16886.56628481,9.991e-05,2]
[348840030,1736801449234,-1459.48529618,9.992e-05,2]
[348840031,1736801449243,-28803.89606409,9.992e-05,2]
[348840032,1736801449254,-16786.20295067,9.992e-05,2]
[348840033,1736801449264,-11791.15533592,9.992e-05,2]
[348840034,1736801449274,-178.40276522,9.992e-05,2]
[348840035,1736801449284,-1110.99112742,9.992e-05,2]
[348840036,1736801449294,-1026.44645191,9.992e-05,2]
[348840037,1736801449304,-6973.89206638,9.992e-05,2]
[348840038,1736801449315,-1342.7715931,9.992e-05,2]
[348840039,1736801449324,-1273.69684139,9.993e-05,2]
[348840040,1736801449334,-200.0,9.993e-05,2]
[348840041,1736801449344,-16786.20295067,9.993e-05,2]
[348840042,1736801449353,-708.30651456,9.993e-05,2]
[348840043,1736801449363,-3378.99,9.993e-05,2]
[348840044,1736801449372,-9080.71,9.993e-05,2]
[348840045,1736801449381,-1231.49,9.993e-05,2]
[348840046,1736801449391,-825.86,9.993e-05,2]
[348840047,1736801449400,-2023.44,9.993e-05,2]
[348840048,1736801449410,-500.0,9.993e-05,2]
[348840049,1736801449419,-653.01,9.993e-05,2]
[348840050,1736801449428,-1257.42,9.993e-05,2]
[348840051,1736801449438,-1611.04,9.993e-05,2]
[348840052,1736801449448,-500.0,9.993e-05,2]
[348840053,1736801449458,-500.0,9.993e-05,2]
[348840054,1736801449467,-1000.0,9.993e-05,2]
[348840055,1736801449479,-1002.02,9.993e-05,2]
[348840056,1736801449489,-500.0,9.993e-05,2]
[348840057,1736801449498,-500.0,9.993e-05,2]
[348840058,1736801449508,-2572.7,9.993e-05,2]
[348840059,1736801449517,-2113.21,9.993e-05,2]
[348840060,1736801449526,-500.0,9.993e-05,2]
[348840061,1736801449536,-218.09834367,9.993e-05,2]
[348840062,1736801449545,-935.84163456,9.993e-05,2]
[348840063,1736801449555,-10930.43157916,9.993e-05,2]
[348840064,1736801449564,-418.1241212,9.993e-05,2]
[348840065,1736801449574,-200.0,9.993e-05,2]
[348840066,1736801449583,-178.40276522,9.993e-05,2]
[348840067,1736801449593,-241.6838138,9.994e-05,2]
[348840068,1736801449602,-3050.24934661,9.994e-05,2]
[348840069,1736801449612,-16886.56628481,9.994e-05,2]
[348840070,1736801449622,-17516.70548035,9.994e-05,2]
[348840071,1736801449632,-1058.62973305,9.994e-05,2]
[348840072,1736801449641,-4088.00223319,9.994e-05,2]
[348840073,1736801449651,-759.25170892,9.994e-05,2]
[348840074,1736801449660,-708.30651456,9.994e-05,2]
[348840075,1736801449669,-10930.43157916,9.994e-05,2]
[348840076,1736801449679,-28803.89606409,9.994e-05,2]
[348840077,1736801449688,-1026.44645191,9.994e-05,2]
[348840078,1736801449698,-14176.65976301,9.994e-05,2]
[348840079,1736801449707,-708.30651456,9.994e-05,2]
[348840080,1736801449716,-17516.70548035,9.995e-05,2]
[348840081,1736801449728,-1058.62973305,9.995e-05,2]
[348840082,1736801449738,-935.84163456,9.995e-05,2]
[348840083,1736801449747,-1367.7213641,9.995e-05,2]
[348840084,1736801449756,-6973.89206638,9.995e-05,2]
[348840085,1736801449766,-178.40276522,9.995e-05,2]
[348840086,1736801449775,-20598.07839305,9.995e-05,2]
[348840087,1736801449785,-200.0,9.995e-05,2]
[348840088,1736801449795,-1392.27891416,9.995e-05,2]
[348840089,1736801449804,-20598.07839305,9.995e-05,2]
[348840090,1736801449813,-200.0,9.995e-05,2]
[348840091,1736801449822,-1273.69684139,9.996e-05,2]
[348840092,1736801449832,-17516.70548035,9.996e-05,2]
[348840093,1736801449841,-200.0,9.996e-05,2]
[348840094,1736801449850,-418.1241212,9.996e-05,2]
[348840095,1736801449859,-1020.89089635,9.997e-05,2]
[348840096,1736801449869,-200.0,9.997e-05,2]
[348840097,1736801449878,-28803.89606409,9.997e-05,2]
[348840098,1736801449887,-178.40276522,9.997e-05,2]
[348840099,1736801449897,-708.30651456,9.997e-05,2]
[348840100,1736801449906,-20598.07839305,9.997e-05,2]
[348840101,1736801449915,-14176.65976301,9.997e-05,2]
[348840102,1736801449925,-67290.36483506,9.997e-05,2]
[348840103,1736801449935,-759.25170892,9.997e-05,2]
[348840104,1736801449944,-18049.58234538,9.997e-05,2]
[348840105,1736801449953,-418.1241212,9.997e-05,2]
[348840106,1736801449962,-200.0,9.997e-05,2]
[348840107,1736801449973,-6973.89206638,9.997e-05,2]
[348840108,1736801449983,-18049.58234538,9.998e-05,2]
[348840109,1736801449992,-1273.69684139,9.998e-05,2]
[348840110,1736801450002,-28803.89606409,9.998e-05,2]
[348840111,1736801450011,-500.0,9.998e-05,2]
[348840112,1736801450020,-500.0,9.998e-05,2]
[348840113,1736801450031,-503.81658871,9.998e-05,2]
[348840114,1736801450041,-500.0,9.998e-05,2]
[348840115,1736801450054,-183.95555617,9.998e-05,2]
[348840116,1736801450063,-500.0,9.998e-05,2]
[348840117,1736801450075,-500.0,9.998e-05,2]
[348840118,1736801450085,-502.75653172,9.998e-05,2]
[348840119,1736801450094,-500.0,9.998e-05,2]
[348840120,1736801450103,-191.03238412,9.998e-05,2]
[348840121,1736801450112,-27559.93736974,9.998e-05,2]
[348840122,1736801450123,-4088.00223319,9.998e-05,2]
[348840123,1736801450132,-3050.24934661,9.998e-05,2]
[348840124,1736801450141,-200.0,9.998e-05,2]
[348840125,1736801450150,-14176.65976301,9.998e-05,2]
[348840126,1736801450159,-178.40276522,9.998e-05,2]
[348840127,1736801450168,-200.0,9.998e-05,2]
[348840128,1736801450178,-67290.36483506,9.999e-05,2]
[348840129,1736801450187,-16786.20295067,9.999e-05,2]
[348840130,1736801450196,-500.0,9.999e-05,2]
[348840131,1736801450205,-1459.48529618,9.999e-05,2]
[348840132,1736801450214,-1110.99112742,9.999e-05,2]
[348840133,1736801450225,-1058.62973305,9.999e-05,2]
[348840134,1736801450235,-509.7712596,9.999e-05,2]
[348840135,1736801450246,-763.29024785,9.999e-05,2]
[348840136,1736801450255,-16786.20295067,0.0001,2]
[348840137,1736801450264,-20598.07839305,0.0001,2]
[348840138,1736801450273,-693.40676972,0.0001,2]
[348840139,1736801450283,-509.7712596,0.0001,2]
[348840140,1736801450293,-1261493.26522173,0.0001,2]
[348840141,1736801450621,-216183.77273431,0.0001,2]
[348840142,1736801450645,-741410.56738957,0.0001,2]
[348840143,1736801450656,-1386.75466245,0.0001,2]
[348840144,1736801450666,-1601.46032278,0.0001,2]
[348840145,1736801451170,-500.0,9.969e-05,2]
[348840146,1736801451181,-500.0,9.969e-05,2]
[348840147,1736801451191,-500.0,9.969e-05,2]
[348840148,1736801451200,-33008.84913102,0.0001,2]
[348840149,1736801451211,-31700.0,0.0001,2]
[348840150,1736801451224,-2853756.36988381,0.0001,2]
[348840151,1736801451243,-500.0,9.97e-05,2]
[348840152,1736801451252,-321.960035,0.0001,2]
[348840153,1736801451263,-1060.2113,0.0001,2]
[348840154,1736801451280,-690.02331273,0.0001,2]
[348840155,1736801451292,-4658.35634248,0.0001,2]
[348840156,1736801451302,-3598.6000006,0.0001,2]
[348840157,1736801451313,-3852.11199298,0.0001,2]
[348840158,1736801451995,-500.93973609,9.969e-05,2]
[348840159,1736801452005,-724248.32649832,0.0001,2]
[348840160,1736801452014,-2085.76993624,0.0001,2]
[348840161,1736801452022,-151.0,0.0001,2]
[348840162,1736801452035,-176.627845,0.0001,2]
[348840163,1736801452045,-29953.06929857,0.0001,2]
[348840164,1736801452059,-405.64972472,0.0001,2]
[348840165,1736801452093,-928.96,0.0001,2]
[348840166,1736801452104,-1399.20755255,0.0001,2]
[348840167,1736801452115,-306.33060287,0.0001,2]
[348840168,1736801452127,-1531.00098831,0.0001,2]
[348840169,1736801452450,-500.0,9.969e-05,2]
[348840170,1736801452460,-500.0,9.97e-05,2]
[348840171,1736801452469,-778513.26871352,0.0001,2]
[348840172,1736801452886,-500.0,9.969e-05,2]
[348840173,1736801452896,-281.35345658,9.97e-05,2]
[348840174,1736801452908,-956.35654342,9.97e-05,2]
[348840175,1736801452917,-500.0,9.97e-05,2]
[348840176,1736801452927,-2153.04285658,0.0001,2]
[348840177,1736801452957,-4678.8891,0.0001,2]
[348840178,1736801452969,-3071.37583351,0.0001,2]
[348840179,1736801452992,-545.7126969,0.0001,2]
[348840180,1736801453013,-161520.76886273,0.0001,2]
[348840181,1736801618954,200.0,0.00022125,120]
[348840182,1736801703661,156.23020803,0.00023,120]
[348840184,1736802194027,500.0,0.00022125,120]
[348840185,1736802196662,2000.0,0.00022125,120]
[348840186,1736802226181,309.14856625,0.00021,30]
[348840187,1736802226764,181.53,7.174e-05,2]
[348840225,1736802635935,-250.0,8.965e-05,2]
[348840226,1736802635946,-300.0,8.984e-05,2]
[348840227,1736802635959,-1342.75213837,8.984e-05,2]
[348840228,1736802635969,-417.39774532,8.985e-05,2]
[348840229,1736802635991,-4259.30684106,8.985e-05,2]
[348840230,1736802636000,-180.57180324,8.985e-05,2]
[348840231,1736802636010,-1079.32470161,8.985e-05,2]
[348840232,1736802636021,-3653.73494028,8.985e-05,2]
[348840233,1736802636031,-421.82,8.985e-05,2]
[348840234,1736802636042,-250.0,8.985e-05,2]
[348840235,1736802636052,-201.39,9.01e-05,2]
[348840236,1736802636061,-48.05505972,9.062e-05,2]
[348840237,1736802636348,-250.0,8.826e-05,2]
[348840238,1736802636359,-1476.25494028,9.062e-05,2]
[348840239,1736802636373,-1000.0,9.089e-05,2]
[348840240,1736802636383,-300.0,9.4e-05,3]
[348840241,1736802636393,-150.0,9.465e-05,2]
[348840242,1736802636403,-150.0,9.465e-05,2]
[348840243,1736802636413,-150.0,9.465e-05,2]
[348840244,1736802636423,-150.0,9.465e-05,2]
[348840245,1736802636432,-150.0,9.465e-05,2]
[348840246,1736802636443,-150.0,9.465e-05,2]
[348840247,1736802636452,-700.0,9.5e-05,3]
[348840248,1736802636462,-1000.0,9.6e-05,3]
[348840249,1736802636472,-1400.0,9.7e-05,3]
[348840250,1736802636482,-685.2082,9.701e-05,2]
[348840251,1736802636491,-6836.225,9.769e-05,2]
[348840252,1736802636501,-383.348,9.769e-05,2]
[348840253,1736802636510,-711.68623832,9.769e-05,2]
[348840254,1736802636519,-1700.0,9.8e-05,3]
[348840255,1736802636529,-858.79969878,9.867e-05,2]
[348840256,1736802636542,-925.47870122,9.867e-05,2]
[348840257,1736802636552,-2066.0515,9.867e-05,2]
[348840258,1736802636562,-47046.3549,9.868e-05,2]
[348840259,1736802636571,-11864.9256,9.868e-05,2]
[348840260,1736802636580,-180.57180323,9.868e-05,2]
[348840261,1736802636590,-3850.3344,9.87e-05,2]
[348840262,1736802636599,-420.0,9.882e-05,2]
[348840263,1736802636609,-31037.5728,9.893e-05,2]
[348840264,1736802636619,-500.0,9.9e-05,2]
[348840265,1736802636628,-1000.0,9.9e-05,2]
[348840266,1736802636638,-300.0,9.9e-05,3]
[348840268,1736802636648,-883.4,9.966e-05,2]
[348840270,1736802636658,-888.68,9.966e-05,2]
[348840272,1736802636667,-1539.24,9.966e-05,2]
[348840274,1736802636677,-769.53,9.966e-05,2]
[348840276,1736802636686,-2604.45,9.966e-05,2]
[348840278,1736802636696,-3475.19,9.966e-05,2]
[348840280,1736802636705,-1968.68,9.966e-05,2]
[348840282,1736802636715,-500.0,9.966e-05,2]
[348840284,1736802636725,-1285.88,9.966e-05,2]
[348840286,1736802636735,-3013.97,9.966e-05,2]
[348840288,1736802636744,-500.0,9.966e-05,2]
[348840290,1736802636754,-500.0,9.966e-05,2]
[348840292,1736802636764,-851.71,9.966e-05,2]
[348840294,1736802636773,-500.0,9.966e-05,2]
[348840296,1736802636783,-500.0,9.966e-05,2]
[348840298,1736802636794,-500.0,9.966e-05,2]
[348840300,1736802636803,-818.42,9.966e-05,2]
[348840302,1736802636813,-1794.36,9.966e-05,2]
[348840304,1736802636822,-500.0,9.966e-05,2]
[348840306,1736802636831,-500.0,9.967e-05,2]
[348840308,1736802636841,-500.0,9.967e-05,2]
[348840310,1736802636850,-500.0,9.967e-05,2]
[348840312,1736802636860,-500.0,9.967e-05,2]
[348840314,1736802636869,-500.0,9.967e-05,2]
[348840316,1736802636878,-379.02338731,9.967e-05,2]
[348840318,1736802636887,-500.0,9.967e-05,2]
[348840320,1736802636896,-500.0,9.967e-05,2]
[348840322,1736802636905,-500.0,9.967e-05,2]
[348840324,1736802636914,-500.0,9.967e-05,2]
[348840326,1736802636924,-500.0,9.967e-05,2]
[348840328,1736802636933,-500.0,9.967e-05,2]
[348840330,1736802636942,-500.0,9.967e-05,2]
[348840331,1736802636951,-500.0,9.967e-05,2]
[348840333,1736802636960,-500.0,9.967e-05,2]
[348840335,1736802636969,-500.0,9.967e-05,2]
[348840337,1736802636979,-500.0,9.967e-05,2]
[348840339,1736802636990,-500.0,9.967e-05,2]
[348840341,1736802636999,-500.0,9.967e-05,2]
[348840343,1736802637009,-500.0,9.967e-05,2]
[348840345,1736802637018,-500.0,9.967e-05,2]
[348840347,1736802637028,-500.0,9.967e-05,2]
[348840349,1736802637037,-500.0,9.967e-05,2]
[348840351,1736802637048,-500.0,9.967e-05,2]
[348840352,1736802637058,-500.0,9.967e-05,2]
[348840354,1736802637067,-500.0,9.967e-05,2]
[348840356,1736802637076,-500.0,9.967e-05,2]
[348840358,1736802637085,-500.0,9.967e-05,2]
[348840360,1736802637095,-500.0,9.967e-05,2]
[348840361,1736802637105,-500.0,9.967e-05,2]
[348840363,1736802637114,-500.0,9.967e-05,2]
[348840365,1736802637123,-500.0,9.967e-05,2]
[348840367,1736802637132,-500.0,9.967e-05,2]
[348840369,1736802637142,-500.0,9.967e-05,2]
[348840371,1736802637151,-500.0,9.967e-05,2]
[348840373,1736802637160,-619.79,9.967e-05,2]
[348840375,1736802637169,-500.0,9.967e-05,2]
[348840377,1736802637179,-500.0,9.967e-05,2]
[348840379,1736802637187,-500.0,9.967e-05,2]
[348840380,1736802637197,-500.0,9.967e-05,2]
[348840382,1736802637206,-500.0,9.967e-05,2]
[348840384,1736802637216,-500.0,9.967e-05,2]
[348840386,1736802637225,-500.0,9.967e-05,2]
[348840388,1736802637235,-500.0,9.967e-05,2]
[348840390,1736802637244,-500.0,9.967e-05,2]
[348840392,1736802637253,-500.0,9.967e-05,2]
[348840394,1736802637262,-500.0,9.967e-05,2]
[348840396,1736802637271,-611.58,9.967e-05,2]
[348840398,1736802637280,-500.0,9.967e-05,2]
[348840401,1736802637290,-500.0,9.967e-05,2]
[348840403,1736802637300,-500.0,9.967e-05,2]
[348840404,1736802637310,-500.0,9.967e-05,2]
[348840406,1736802637320,-500.0,9.967e-05,2]
[348840408,1736802637329,-500.0,9.967e-05,2]
[348840410,1736802637339,-595.16747642,9.967e-05,2]
[348840413,1736802637348,-500.0,9.967e-05,2]
[348840415,1736802637357,-501.16422933,9.967e-05,2]
[348840418,1736802637370,-500.0,9.967e-05,2]
[348840421,1736802637380,-500.0,9.967e-05,2]
[348840424,1736802637389,-500.0,9.967e-05,2]
[348840427,1736802637399,-500.0,9.967e-05,2]
[348840429,1736802637409,-500.0,9.967e-05,2]
[348840431,1736802637418,-500.0,9.967e-05,2]
[348840433,1736802637428,-500.0,9.967e-05,2]
[348840434,1736802637437,-500.0,9.967e-05,2]
[348840435,1736802637448,-500.0,9.967e-05,2]
[348840436,1736802637457,-500.0,9.967e-05,2]
[348840437,1736802637467,-500.0,9.967e-05,2]
[348840438,1736802637476,-352.34791048,9.967e-05,2]
[348840439,1736802637486,-500.0,9.967e-05,2]
[348840440,1736802637495,-500.0,9.967e-05,2]
[348840443,1736802637505,-500.0,9.967e-05,2]
[348840445,1736802637515,-500.0,9.967e-05,2]
[348840447,1736802637524,-500.0,9.967e-05,2]
[348840449,1736802637533,-500.0,9.967e-05,2]
[348840451,1736802637544,-376.89104409,9.967e-05,2]
[348840452,1736802637553,-500.0,9.967e-05,2]
[348840453,1736802637563,-504.95951228,9.967e-05,2]
[348840455,1736802637572,-500.0,9.967e-05,2]
[348840456,1736802637582,-676.76,9.967e-05,2]
[348840458,1736802637591,-500.0,9.967e-05,2]
[348840460,1736802637600,-504.14736362,9.967e-05,2]
[348840462,1736802637610,-508.52169129,9.967e-05,2]
[348840464,1736802637620,-501.24803778,9.967e-05,2]
[348840466,1736802637630,-500.0,9.967e-05,2]
[348840468,1736802637639,-509.38515153,9.967e-05,2]
[348840470,1736802637648,-500.0,9.967e-05,2]
[348840472,1736802637658,-500.0,9.967e-05,2]
[348840474,1736802637667,-500.0,9.967e-05,2]
[348840476,1736802637676,-500.0,9.967e-05,2]
[348840478,1736802637686,-500.0,9.967e-05,2]
[348840480,1736802637695,-500.0,9.967e-05,2]
[348840482,1736802637704,-500.0,9.967e-05,2]
[348840484,1736802637714,-500.0,9.967e-05,2]
[348840486,1736802637723,-503.95781287,9.967e-05,2]
[348840488,1736802637733,-500.0,9.967e-05,2]
[348840490,1736802637742,-502.57447567,9.967e-05,2]
[348840492,1736802637751,-500.0,9.967e-05,2]
[348840494,1736802637760,-503.45168764,9.967e-05,2]
[348840496,1736802637769,-500.0,9.967e-05,2]
[348840497,1736802637778,-500.0,9.967e-05,2]
[348840499,1736802637788,-502.63037291,9.967e-05,2]
[348840502,1736802637798,-500.0,9.967e-05,2]
[348840503,1736802637807,-500.0,9.967e-05,2]
[348840505,1736802637817,-500.0,9.967e-05,2]
[348840507,1736802637826,-500.0,9.967e-05,2]
[348840509,1736802637835,-500.0,9.967e-05,2]
[348840511,1736802637845,-500.0,9.967e-05,2]
[348840513,1736802637854,-500.0,9.967e-05,2]
[348840515,1736802637863,-500.0,9.967e-05,2]
[348840517,1736802637872,-500.0,9.967e-05,2]
[348840519,1736802637881,-500.0,9.967e-05,2]
[348840521,1736802637891,-500.0,9.967e-05,2]
[348840523,1736802637902,-501.8151213,9.967e-05,2]
[348840525,1736802637911,-503.62291662,9.967e-05,2]
[348840527,1736802637921,-500.0,9.967e-05,2]
[348840529,1736802637931,-501.66734006,9.967e-05,2]
[348840531,1736802637940,-504.65000037,9.967e-05,2]
[348840533,1736802637949,-799.27,9.967e-05,2]
[348840535,1736802637959,-500.0,9.967e-05,2]
[348840537,1736802637968,-500.0,9.967e-05,2]
[348840539,1736802637977,-500.0,9.967e-05,2]
[348840541,1736802637986,-500.0,9.967e-05,2]
[348840543,1736802637995,-500.0,9.967e-05,2]
[348840545,1736802638005,-500.0,9.967e-05,2]
[348840547,1736802638014,-500.0,9.967e-05,2]
[348840549,1736802638024,-500.0,9.967e-05,2]
[348840551,1736802638035,-502.1010461,9.967e-05,2]
[348840553,1736802638046,-500.0,9.967e-05,2]
[348840555,1736802638055,-504.33735113,9.967e-05,2]
[348840557,1736802638065,-500.0,9.967e-05,2]
[348840559,1736802638075,-500.0,9.967e-05,2]
[348840561,1736802638084,-540.24285704,9.967e-05,2]
[348840563,1736802638093,-500.0,9.967e-05,2]
[348840565,1736802638102,-500.0,9.967e-05,2]
[348840567,1736802638112,-500.65506824,9.967e-05,2]
[348840569,1736802638122,-500.0,9.967e-05,2]
[348840571,1736802638132,-500.0,9.967e-05,2]
[348840573,1736802638142,-500.0,9.967e-05,2]
[348840575,1736802638153,-500.0,9.967e-05,2]
[348840577,1736802638163,-500.0,9.967e-05,2]
[348840579,1736802638173,-500.0,9.967e-05,2]
[348840581,1736802638182,-500.0,9.967e-05,2]
[348840583,1736802638192,-500.42753962,9.967e-05,2]
[348840585,1736802638201,-501.07088737,9.967e-05,2]
[348840587,1736802638210,-500.0,9.967e-05,2]
[348840589,1736802638220,-637.06783239,9.967e-05,2]
[348840591,1736802638229,-500.0,9.967e-05,2]
[348840594,1736802638239,-500.0,9.967e-05,2]
[348840596,1736802638249,-500.0,9.967e-05,2]
[348840600,1736802638259,-500.0,9.967e-05,2]
[348840601,1736802638269,-500.0,9.967e-05,2]
[348840603,1736802638279,-500.0,9.967e-05,2]
[348840605,1736802638288,-500.0,9.967e-05,2]
[348840608,1736802638302,-500.0,9.967e-05,2]
[348840632,1736802638312,-500.0,9.967e-05,2]